bitfinex-derivatives/quotes_BNBF0:USTF0_20250101
["timestamp","ask_amount","ask_price","bid_price","bid_amount"]
[1735739201557,0.25960159,709.67,708.28,0.882]
[1735739201758,0.25960159,709.66,708.28,0.882]
[1735739201960,1.47288079,709.79,708.28,0.882]
[1735739202161,0.25960034,709.78,708.28,0.882]
[1735739204667,1.47288079,709.79,708.28,0.882]
[1735739204863,0.25963078,709.78,708.28,0.882]
[1735739205762,0.25963078,709.78,708.28,1.92734112]
[1735739206163,0.25963078,709.78,708.28,1.04534112]
[1735739207463,0.25963834,709.77,708.29,0.827]
[1735739207661,0.25963834,709.76,708.29,0.827]
[1735739207866,0.25963834,709.75,708.31,1.04534112]
[1735739208162,0.25963834,709.74,708.31,1.04534112]
[1735739208372,0.25963834,709.73,708.31,1.04534112]
[1735739208663,0.25963834,709.72,708.31,1.04534112]
[1735739208967,0.25963834,709.71,708.31,1.04534112]
[1735739209170,0.25963834,709.7,708.31,1.04534112]
[1735739209365,0.25963834,709.7,708.29,0.827]
[1735739209366,0.25963834,709.69,708.33,1.04534112]
[1735739209569,0.25963834,709.68,708.33,1.04534112]
[1735739209766,0.25963834,709.67,708.33,1.04534112]
[1735739209965,0.25963834,709.7,708.33,1.04534112]
[1735739210163,0.25963834,709.69,708.33,1.04534112]
[1735739210366,0.25963834,709.68,708.33,1.04534112]
[1735739210564,0.25963834,709.67,708.36,1.04534112]
[1735739210765,0.25963831,709.66,708.36,1.04534112]
[1735739210967,0.25963831,709.65,708.36,1.04534112]
[1735739211271,0.25963831,709.64,708.36,1.04534112]
[1735739211568,0.25963831,709.63,708.36,1.04534112]
[1735739211766,0.25963831,709.62,708.4,1.04534112]
[1735739211971,0.25963831,709.61,708.4,1.04534112]
[1735739212164,0.25963831,709.6,708.4,1.04534112]
[1735739212364,0.25963831,709.59,708.4,1.04534112]
[1735739212567,0.25963831,709.58,708.4,1.04534112]
[1735739212768,0.25964321,709.57,708.44,1.04534112]
[1735739212967,0.54150802,709.56,708.44,1.04534112]
[1735739213170,0.25964321,709.55,708.44,1.04534112]
[1735739213964,0.25964321,709.55,708.29,0.827]
[1735739213965,0.25964321,709.55,708.46,1.04534112]
[1735739215369,0.28186481,709.56,708.46,1.04534112]
[1735739215672,0.25964581,709.55,708.46,1.04534112]
[1735739216170,0.25964581,709.55,708.49,1.04534112]
[1735739217273,0.25964581,709.55,708.3,1.04534112]
[1735739217274,0.25964581,709.55,708.52,1.04534112]
[1735739218071,0.28186481,709.56,708.52,1.04534112]
[1735739218272,0.25964677,709.55,708.52,1.04534112]
[1735739219573,1.47304185,709.54,708.52,1.04534112]
[1735739219873,1.05563649,709.5,708.47,1.04534112]
[1735739220069,0.25964677,709.49,708.47,1.04534112]
[1735739220773,0.25966015,709.48,708.47,1.04534112]
[1735739220973,0.25966015,709.47,708.48,1.04534112]
[1735739221173,0.25966015,709.46,708.48,1.04534112]
[1735739221367,0.25966015,709.45,708.48,1.04534112]
[1735739221575,0.25966015,709.44,708.48,1.04534112]
[1735739221874,0.25966015,709.43,708.48,1.04534112]
[1735739222075,0.25966015,709.42,708.48,1.04534112]
[1735739222270,0.25966015,709.41,708.49,1.04534112]
[1735739222471,0.25966015,709.4,708.49,1.04534112]
[1735739222672,0.25966015,709.39,708.49,1.04534112]
[1735739222873,0.25966015,709.38,708.49,1.04534112]
[1735739223173,0.25966015,709.37,708.49,1.04534112]
[1735739223372,0.25966015,709.36,708.49,1.04534112]
[1735739223669,1.05563649,709.48,708.49,1.04534112]
[1735739223974,0.25966539,709.47,708.49,1.04534112]
[1735739224468,0.28190454,709.46,708.49,1.04534112]
[1735739224669,0.25966539,709.45,708.49,1.04534112]
[1735739224869,0.28190454,709.46,708.49,1.04534112]
[1735739225073,0.28190454,709.46,708.58,1.04534112]
[1735739226185,0.28190454,709.46,708.3,1.76397299]
[1735739226186,0.28190454,709.46,708.61,1.04534112]
[1735739227087,0.28190454,709.46,708.62,1.04534112]
[1735739227882,0.28190454,709.46,708.58,1.04534112]
[1735739229180,0.28190454,709.46,708.3,0.71863187]
[1735739229181,0.28190454,709.46,708.61,1.04534112]
[1735739229778,1.47283924,709.45,708.61,1.04534112]
[1735739230180,1.47283924,709.45,708.69,1.04534112]
[1735739231484,1.47283924,709.45,708.67,1.04534112]
[1735739232582,1.47283924,709.45,708.68,1.128]
[1735739236990,1.47283924,709.45,708.68,2.17334112]
[1735739237990,0.28190454,709.46,708.68,2.17334112]
[1735739238691,0.28190454,709.46,708.73,1.04534112]
[1735739239592,0.28190454,709.46,708.68,1.128]
[1735739239593,0.28190454,709.46,708.74,1.04534112]
[1735739240586,0.28190454,709.46,708.73,1.04534112]
[1735739241686,0.28190454,709.46,708.72,1.04534112]
[1735739245190,0.28190454,709.46,708.71,1.04534112]
[1735739246194,0.28190454,709.46,708.69,1.04534112]
[1735739247287,1.05563649,710.04,708.69,1.04534112]
[1735739247489,1.47242898,709.74,708.69,1.04534112]
[1735739247695,0.28167823,710.03,708.7,1.009]
[1735739247894,0.25947835,710.02,708.7,1.009]
[1735739248094,1.47228882,709.76,708.7,1.009]
[1735739248297,0.28167823,710.03,708.7,1.009]
[1735739248594,0.25948931,710.02,708.7,1.009]
[1735739248791,0.25948632,710.01,708.7,1.009]
[1735739248995,0.28167823,710.03,708.7,1.009]
[1735739248996,0.25948632,710.0,708.73,1.04534112]
[1735739249293,0.25948632,709.99,708.73,1.04534112]
[1735739249596,0.25952551,709.98,708.73,1.04534112]
[1735739249995,0.25952551,709.98,708.7,1.009]
[1735739251596,0.2595469,709.97,708.7,1.009]
[1735739251797,0.2595469,709.96,708.7,1.009]
[1735739251995,0.2595469,709.95,708.7,1.009]
[1735739252195,0.2595469,709.94,708.7,1.009]
[1735739252390,0.2595526,709.93,708.7,1.009]
[1735739252592,0.2595526,709.92,708.7,1.009]
[1735739252798,0.2595526,709.91,708.7,1.009]
[1735739252991,0.2595526,709.9,708.7,1.009]
[1735739253191,0.2595526,709.89,708.7,1.009]
[1735739253497,0.2595526,709.88,708.7,1.009]
[1735739253697,0.2595526,709.87,708.7,1.009]
[1735739253998,0.25956758,709.86,708.7,1.009]
[1735739254192,0.25956758,709.98,708.7,1.009]
[1735739254393,0.25956758,709.97,708.7,1.009]
[1735739254597,0.25956758,709.96,708.7,1.009]
[1735739254798,0.25956758,709.95,708.7,1.009]
[1735739254995,0.25956758,709.94,708.7,1.009]
[1735739255195,0.25956758,709.93,708.7,1.009]
[1735739255394,0.25956758,709.92,708.7,1.009]
[1735739255597,0.25956758,709.91,708.7,1.009]
[1735739255796,0.25956758,709.9,708.7,1.009]
[1735739255994,0.25956758,709.89,708.7,1.009]
[1735739256201,1.47227324,709.99,708.7,1.009]
[1735739256500,0.25957078,709.98,708.7,1.009]
[1735739257297,0.25957284,709.97,708.7,1.009]
[1735739257600,0.25957284,709.96,708.7,1.009]
[1735739257800,0.25957284,709.95,708.7,1.009]
[1735739258001,0.25957284,709.94,708.7,1.009]
[1735739258197,1.47227324,709.99,708.7,1.009]
[1735739258402,0.25957207,709.98,708.7,1.009]
[1735739259302,1.47227324,709.99,708.7,1.009]
[1735739259603,0.25957304,709.98,708.7,1.009]
[1735739259796,0.25957304,709.98,708.4,1.04534112]
[1735739260603,0.25957304,709.98,708.41,1.04534112]
[1735739261000,0.25957304,709.98,708.42,1.008]
[1735739261805,0.25957304,709.98,708.44,1.04534112]
[1735739262906,0.25957304,709.98,708.45,1.04534112]
[1735739264305,0.25957304,709.98,708.42,1.008]
[1735739264306,0.25957304,709.98,708.47,1.04534112]
[1735739264501,0.28170601,709.96,708.47,1.04534112]
[1735739264700,0.25957236,709.95,708.47,1.04534112]
[1735739264901,0.28171791,709.93,708.47,1.04534112]
[1735739265107,0.25957236,709.92,708.47,1.04534112]
[1735739265308,0.28172982,709.9,708.47,1.04534112]
[1735739265505,0.25957118,709.89,708.47,1.04534112]
[1735739265807,0.28174172,709.87,708.47,1.04534112]
[1735739266007,0.25957118,709.86,708.47,1.04534112]
[1735739266410,0.28175363,709.84,708.64,1.04534112]
[1735739266611,0.25957118,709.83,708.64,1.04534112]
[1735739267410,0.25957179,709.82,708.65,1.04534112]
[1735739267610,0.25957179,709.81,708.65,1.04534112]
[1735739267810,0.25957179,709.8,708.65,1.04534112]
[1735739268007,0.25957179,709.79,708.65,1.04534112]
[1735739268312,0.25957179,709.78,708.65,1.04534112]
[1735739268511,0.25957179,709.77,708.65,1.04534112]
[1735739268712,0.25957179,709.76,708.65,1.04534112]
[1735739268907,0.25957179,709.75,708.65,1.04534112]
[1735739269107,0.25957179,709.74,708.65,1.04534112]
[1735739269311,0.25957179,709.73,708.65,1.04534112]
[1735739269511,0.25957179,709.72,708.63,1.04534112]
[1735739269712,0.25957179,709.71,708.63,1.04534112]
[1735739270012,0.25957179,709.7,708.63,1.04534112]
[1735739270214,0.25957179,709.69,708.63,1.04534112]
[1735739270512,0.25957179,709.68,708.63,1.04534112]
[1735739270710,1.05563649,709.8,708.65,1.04534112]
[1735739270911,0.25957957,709.79,708.65,1.04534112]
[1735739271613,1.31521606,709.79,708.66,1.04534112]
[1735739271811,0.25957957,709.78,708.66,1.04534112]
[1735739272217,1.05563649,709.79,708.66,1.04534112]
[1735739273915,0.28175363,709.84,708.42,1.008]
[1735739273916,0.28175363,709.84,708.63,1.04534112]
[1735739275116,0.28175363,709.84,708.42,1.008]
[1735739275117,0.28175363,709.84,708.65,1.04534112]
[1735739276118,0.28175363,709.84,708.64,1.04534112]
[1735739278315,0.25952465,709.83,708.64,1.04534112]
[1735739278615,0.28176157,709.82,708.63,1.04534112]
[1735739278814,0.25952465,709.81,708.63,1.04534112]
[1735739279219,1.47244455,709.8,708.63,1.04534112]
[1735739279415,0.28177348,709.79,708.63,1.04534112]
[1735739279817,0.28177348,709.79,708.79,1.04534112]
[1735739280822,0.25953395,709.78,708.79,1.04534112]
[1735739281020,0.28177348,709.79,708.79,1.04534112]
[1735739282022,0.28177348,709.79,708.43,0.71848868]
[1735739282023,0.28177348,709.79,708.81,1.04534112]
[1735739283120,0.28177348,709.79,708.76,1.04534112]
[1735739284119,0.28177348,709.79,708.79,1.04534112]
[1735739285118,0.28177348,709.79,708.81,1.04534112]
[1735739286315,0.28177348,709.79,708.8,1.04534112]
[1735739287222,0.28177348,709.79,708.81,1.04534112]
[1735739288314,0.28177348,709.79,708.78,1.04534112]
[1735739289223,0.28177348,709.79,708.81,1.04534112]
[1735739290221,0.28177348,709.79,708.81,1.97734112]
[1735739290624,0.28177348,709.79,708.82,1.04534112]
[1735739291520,0.28177348,709.79,708.81,0.932]
[1735739291521,0.28177348,709.79,708.84,1.04534112]
[1735739292321,0.28177348,709.79,708.81,0.932]
[1735739292322,0.28177348,709.79,708.89,1.04534112]
[1735739293528,0.28177348,709.79,708.93,1.04534112]
[1735739294525,0.28177348,709.79,708.81,0.932]
[1735739294526,0.28177348,709.79,708.92,1.04534112]
[1735739296027,0.28177348,709.79,708.87,1.04534112]
[1735739296925,0.28177348,709.79,708.88,1.04534112]
[1735739299130,0.28177348,709.79,708.85,1.04534112]
[1735739300033,0.28177348,709.79,708.83,1.04534112]
[1735739302134,0.28177348,709.79,708.82,1.04534112]
[1735739302428,0.28177348,709.79,708.84,0.97]
[1735739304134,0.28177348,709.79,708.85,1.04534112]
[1735739305335,0.28177348,709.79,708.86,1.04534112]
[1735739306729,0.28177348,709.79,708.84,0.97]
[1735739306730,0.28177348,709.79,708.87,1.04534112]
[1735739307638,0.28177348,709.79,708.9,1.04534112]
[1735739308532,0.28177348,709.79,708.91,1.04534112]
[1735739309638,0.28177348,709.79,708.97,1.04534112]
[1735739311038,0.28177348,709.79,708.98,1.04534112]
[1735739313139,0.28177348,709.79,708.99,1.04534112]
[1735739314039,0.28177348,709.79,709.0,1.04534112]
[1735739315141,0.28177348,709.79,708.93,1.04534112]
[1735739316137,0.28177348,709.79,708.97,1.04534112]
[1735739316538,0.28177348,709.79,708.98,0.831]
[1735739323349,0.28177348,709.79,709.01,1.04534112]
[1735739325549,0.28177348,709.79,709.07,1.04534112]
[1735739326545,0.28177348,709.79,709.1,1.04534112]
[1735739328852,0.28177348,709.79,709.05,1.04534112]
[1735739330252,0.28177348,709.79,708.98,0.831]
[1735739330253,0.28177348,709.79,709.06,1.04534112]
[1735739334654,0.28177348,709.79,708.83,1.04534112]
[1735739335554,0.28177348,709.79,708.84,1.128]
[1735739336055,0.28177348,709.79,708.84,2.17334112]
[1735739337258,0.28177348,709.79,708.85,1.04534112]
[1735739338559,0.28177348,709.79,708.93,1.04534112]
[1735739339556,0.28177348,709.79,708.9,1.04534112]
[1735739340857,0.28177348,709.79,708.88,1.04534112]
[1735739341863,0.28177348,709.79,708.89,1.04534112]
[1735739343062,0.28177348,709.79,708.88,1.04534112]
[1735739344258,0.28177348,709.79,708.97,1.04534112]
[1735739345664,0.28177348,709.79,708.84,1.128]
[1735739345665,0.28177348,709.79,708.98,1.04534112]
[1735739346765,0.28177348,709.79,709.03,1.04534112]
[1735739348764,0.28177348,709.79,708.98,1.04534112]
[1735739349861,0.28177348,709.79,708.99,1.04534112]
[1735739350962,0.28177348,709.79,709.03,1.04534112]
[1735739352267,0.28177348,709.79,709.04,1.04534112]
[1735739352968,0.28177348,709.79,709.13,1.04534112]
[1735739354166,0.28177348,709.79,708.85,0.71863058]
[1735739354167,0.28177348,709.79,709.11,1.04534112]
[1735739358270,0.28177348,709.79,709.06,1.04534112]
[1735739359174,0.28177348,709.79,708.84,2.17334112]
[1735739359175,0.28177348,709.79,709.07,1.04534112]
[1735739360271,0.28177348,709.79,709.09,1.04534112]
[1735739360972,0.28177348,709.79,709.1,0.98]
[1735739365774,0.28177348,709.79,709.1,2.02534112]
[1735739367974,0.28177348,709.79,709.11,1.04534112]
[1735739369180,0.28177348,709.79,709.15,1.04534112]
[1735739370375,0.28177348,709.79,709.17,1.04534112]
[1735739371382,0.28177348,709.79,709.2,1.04534112]
[1735739372482,0.28177348,709.79,709.21,1.04534112]
[1735739373582,0.28177348,709.79,709.19,1.04534112]
[1735739375784,0.28177348,709.79,709.2,1.04534112]
[1735739377984,0.28177348,709.79,709.21,0.768]
[1735739399094,0.28177348,709.79,709.11,1.04534112]
[1735739399801,0.28177348,709.79,709.09,1.04534112]
[1735739400194,0.28177348,709.79,709.1,1.021]
[1735739401102,0.28177348,709.79,709.11,1.04534112]
[1735739402202,0.28177348,709.79,709.1,2.06634112]
[1735739403302,0.28177348,709.79,709.1,1.021]
[1735739408402,0.25953955,709.78,709.1,1.021]
[1735739410803,0.2595513,709.77,709.1,1.021]
[1735739411005,0.2595513,709.76,709.1,1.021]
[1735739411306,0.28177348,709.79,709.1,1.021]
[1735739423404,0.25958142,709.78,709.1,1.021]
[1735739424006,0.28177348,709.79,709.1,1.021]
[1735739428407,0.28177348,709.79,708.49,1.04534112]
[1735739428914,0.28177348,709.79,708.5,1.04534112]
[1735739429418,0.28177348,709.79,708.51,0.905]
[1735739429913,0.28177348,709.79,708.52,1.04534112]
[1735739430815,0.28177348,709.79,708.53,1.04534112]
[1735739434115,0.28177348,709.79,708.51,1.95034112]
[1735739435320,0.28177348,709.79,708.53,1.04534112]
[1735739435519,1.47188924,709.81,708.53,1.04534112]
[1735739437518,1.47188924,709.81,708.6,1.04534112]
[1735739438820,1.47188924,709.81,708.61,1.04534112]
[1735739441018,1.47188924,709.81,708.62,1.04534112]
[1735739442224,1.47188924,709.81,708.63,1.04534112]
[1735739442622,0.25956972,709.8,708.63,1.04534112]
[1735739443223,1.05563649,709.77,708.73,1.04534112]
[1735739443421,0.25956972,709.76,708.73,1.04534112]
[1735739444224,1.31520621,709.76,708.74,1.04534112]
[1735739444423,0.25956972,709.75,708.74,1.04534112]
[1735739444920,0.25957421,709.74,708.74,1.04534112]
[1735739445125,1.47188924,709.81,708.74,1.04534112]
[1735739445126,0.25957421,709.73,708.74,1.04534112]
[1735739445321,0.25957421,709.74,708.74,1.04534112]
[1735739445522,1.47263148,709.72,708.74,1.04534112]
[1735739445723,0.25957421,709.71,708.74,1.04534112]
[1735739445920,0.25957421,709.71,708.75,1.04534112]
[1735739447726,0.25957166,709.7,708.75,1.04534112]
[1735739447922,1.47263148,709.72,708.74,1.04534112]
[1735739448125,0.25957546,709.71,708.74,1.04534112]
[1735739448823,1.47263148,709.72,708.74,1.04534112]
[1735739449029,1.47263148,709.72,708.7,1.04534112]
[1735739449223,0.25957466,709.71,708.7,1.04534112]
[1735739450330,0.25957466,709.71,708.74,1.04534112]
[1735739451625,1.47263148,709.72,708.77,1.04534112]
[1735739451823,0.25957487,709.71,708.77,1.04534112]
[1735739453029,0.25956925,709.7,708.77,1.04534112]
[1735739453221,0.25956925,709.7,708.56,1.04534112]
[1735739453222,0.25956925,709.69,708.79,1.04534112]
[1735739453424,2.52826797,709.72,708.79,1.04534112]
[1735739453627,0.25956771,709.71,708.79,1.04534112]
[1735739454429,0.25956771,709.71,708.8,1.04534112]
[1735739455629,1.05563649,709.7,708.82,1.04534112]
[1735739455826,1.31520456,709.7,708.82,1.04534112]
[1735739456031,0.2595685,709.69,708.82,1.04534112]
[1735739456230,1.05563649,709.7,708.82,1.04534112]
[1735739456634,1.05563649,709.68,708.83,1.04534112]
[1735739457735,0.25956835,709.67,708.83,1.04534112]
[1735739458136,1.05563649,709.64,708.87,1.04534112]
[1735739458936,1.4726211,709.63,708.87,1.04534112]
[1735739459436,1.4726211,709.63,708.81,0.953]
[1735739459437,1.4726211,709.63,708.88,1.04534112]
[1735739460835,2.52825759,709.63,708.88,1.04534112]
[1735739462232,1.4726211,709.63,708.88,1.04534112]
[1735739462433,1.4726211,709.63,708.87,1.04534112]
[1735739463332,2.52825759,709.63,708.87,1.04534112]
[1735739463537,0.25957496,709.62,708.87,1.04534112]
[1735739464033,0.25959844,709.61,708.87,1.04534112]
[1735739464338,1.05563649,709.59,708.87,1.04534112]
[1735739464531,1.05563649,709.59,708.85,1.04534112]
[1735739465531,1.05563649,709.62,708.81,0.953]
[1735739466735,1.4726211,709.63,708.81,0.953]
[1735739472537,0.28184098,709.62,708.81,0.953]
[1735739477044,0.28184098,709.62,708.82,1.04534112]
[1735739478246,0.28184098,709.62,708.81,0.953]
[1735739495456,0.28184098,709.62,708.81,1.99834112]
[1735739496662,0.28184098,709.62,708.81,0.953]
[1735739500689,0.28184098,709.62,708.81,1.99834112]
[1735739502457,0.28184098,709.62,708.83,1.04534112]
[1735739503861,0.28184098,709.62,708.84,0.866]
[1735739504961,0.28184098,709.62,708.84,1.91134112]
[1735739506457,0.28184098,709.62,708.86,1.04534112]
[1735739507462,0.28184098,709.62,708.88,1.04534112]
[1735739508364,0.28184098,709.62,708.89,1.04534112]
[1735739509464,0.28184098,709.62,708.84,0.866]
[1735739509465,0.28184098,709.62,708.88,1.04534112]
[1735739510666,0.28184098,709.62,708.9,1.04534112]
[1735739512065,0.28184098,709.62,708.88,1.04534112]
[1735739516469,0.28184098,709.62,708.78,1.04534112]
[1735739517068,0.28184098,709.62,708.79,0.96]
[1735739526576,0.28184098,709.62,708.89,1.04534112]
[1735739530179,0.28184098,709.62,708.84,1.04534112]
[1735739531575,0.28184098,709.62,708.92,1.04534112]
[1735739532481,0.28184098,709.62,708.9,1.04534112]
[1735739534284,0.28184098,709.62,708.88,1.04534112]
[1735739535382,0.28184098,709.62,708.85,1.04534112]
[1735739536483,0.28184098,709.62,708.81,1.04534112]
[1735739537587,0.28184098,709.62,708.82,1.04534112]
[1735739538788,0.28184098,709.62,708.79,0.96]
[1735739539587,0.28184098,709.62,708.83,1.04534112]
[1735739540289,0.28184098,709.62,708.79,0.96]
[1735739540290,0.28184098,709.62,708.84,1.04534112]
[1735739542202,0.28184098,709.62,708.83,1.04534112]
[1735739543196,0.28184098,709.62,708.86,1.04534112]
[1735739544290,0.28184098,709.62,708.87,1.061]
[1735739546400,0.28184098,709.62,708.9,1.04534112]
[1735739547521,0.28184098,709.62,708.87,1.061]
[1735739547522,0.28184098,709.62,708.88,1.04534112]
[1735739548413,0.28184098,709.62,708.87,2.10634112]
[1735739550118,0.28184098,709.62,708.87,1.061]
[1735739564409,0.28184098,709.62,708.57,1.04534112]
[1735739565309,0.28184098,709.62,708.58,1.129]
[1735739565710,0.28184098,709.62,708.6,1.04534112]
[1735739566905,0.28184098,709.62,708.68,1.04534112]
[1735739568207,0.28184098,709.62,708.69,1.04534112]
[1735739569304,0.28184098,709.62,708.68,1.04534112]
[1735739571910,0.28184098,709.62,708.67,1.04534112]
[1735739573113,0.28184098,709.62,708.58,1.129]
[1735739573114,0.28184098,709.62,708.68,1.04534112]
[1735739574715,0.28184098,709.62,708.58,1.129]
[1735739575617,0.28184098,709.62,708.6,1.04534112]
[1735739576916,0.28184098,709.62,708.64,1.04534112]
[1735739577615,0.28184098,709.62,708.65,0.988]
[1735739579012,0.28184098,709.62,708.65,2.03334112]
[1735739579819,0.28184098,709.62,708.66,1.04534112]
[1735739582022,0.28184098,709.62,708.67,1.04534112]
[1735739583325,0.28184098,709.62,708.78,1.04534112]
[1735739584619,0.28184098,709.62,708.96,1.04534112]
[1735739585925,0.28184098,709.62,708.92,1.04534112]
[1735739587320,0.28184098,709.62,708.94,1.04534112]
[1735739588022,0.28184098,709.62,708.87,1.04534112]
[1735739588218,1.47216425,709.83,708.87,1.04534112]
[1735739589121,1.47216425,709.83,708.86,1.04534112]
[1735739590425,1.47216425,709.83,708.83,1.04534112]
[1735739591726,1.47216425,709.83,708.65,0.988]
[1735739591727,1.47216425,709.83,708.82,1.04534112]
[1735739592628,1.47216425,709.83,708.74,1.04534112]
[1735739593428,1.47216425,709.83,708.72,1.04534112]
[1735739594624,1.47216425,709.83,708.76,1.04534112]
[1735739596731,1.47216425,709.83,708.77,1.04534112]
[1735739597730,1.47216425,709.83,708.8,1.04534112]
[1735739598731,1.47216425,709.83,708.81,1.127]
[1735739599129,1.47216425,709.83,708.81,2.17234112]
[1735739600233,1.47216425,709.83,708.81,1.127]
[1735739603937,1.47216425,709.83,708.84,1.04534112]
[1735739604644,1.47216425,709.83,708.85,1.04534112]
[1735739605534,1.47216425,709.83,708.91,1.04534112]
[1735739609038,1.47216425,709.83,708.94,1.04534112]
[1735739609937,1.47216425,709.83,708.81,1.127]
[1735739609938,1.47216425,709.83,708.93,1.04534112]
[1735739611035,1.47216425,709.83,701.65,5.74319174]
[1735739611036,1.47216425,709.83,708.99,1.04534112]
[1735739612036,1.47216425,709.83,709.0,1.116]
[1735739616745,1.47216425,709.83,709.06,1.04534112]
[1735739617846,1.47216425,709.83,709.07,1.04534112]
[1735739619142,1.47216425,709.83,709.12,1.04534112]
[1735739620250,1.47216425,709.83,709.07,1.04534112]
[1735739622544,1.47216425,709.83,709.0,1.116]
[1735739623049,1.47216425,709.83,708.71,1.04534112]
[1735739623648,1.47216425,709.83,708.7,1.04534112]
[1735739624345,1.47216425,709.83,708.71,0.871]
[1735739626048,1.47216425,709.83,708.71,1.91634112]
[1735739627053,1.47216425,709.83,708.8,1.04534112]
[1735739628550,1.47216425,709.83,708.9,1.04534112]
[1735739630157,1.47216425,709.83,708.71,0.871]
[1735739630158,1.47216425,709.83,708.94,1.04534112]
[1735739631159,1.47216425,709.83,708.97,1.04534112]
[1735739632260,1.47216425,709.83,708.94,1.04534112]
[1735739633460,1.47216425,709.83,708.71,0.871]
[1735739633461,1.47216425,709.83,708.97,1.04534112]
[1735739634361,1.47216425,709.83,708.95,1.04534112]
[1735739635363,1.47216425,709.83,708.96,1.04534112]
[1735739636461,1.47216425,709.83,708.98,1.04534112]
[1735739637563,1.47216425,709.83,709.07,1.04534112]
[1735739638858,1.47216425,709.83,709.05,1.04534112]
[1735739639859,1.47216425,709.83,709.08,1.04534112]
[1735739641165,1.47216425,709.83,708.72,0.71703525]
[1735739641166,1.47216425,709.83,709.04,1.04534112]
[1735739643069,1.47216425,709.83,708.97,1.04534112]
[1735739647871,1.47216425,709.83,708.98,1.04534112]
[1735739649171,1.47216425,709.83,708.97,1.04534112]
[1735739650472,1.47216425,709.83,709.0,1.04534112]
[1735739651575,1.47216425,709.83,709.01,1.04534112]
[1735739652478,1.47216425,709.83,709.0,1.04534112]
[1735739653571,1.47216425,709.83,709.06,1.04534112]
[1735739654581,1.47216425,709.83,700.17,0.51511616]
[1735739654582,1.47216425,709.83,709.01,1.04534112]
[1735739654776,1.05563649,710.34,709.01,1.04534112]
[1735739654980,1.47186849,709.97,709.01,1.04534112]
[1735739655478,1.47179587,709.97,709.02,1.128]
[1735739658578,1.47179587,709.97,709.12,1.04534112]
[1735739659885,1.47179587,709.97,709.08,1.04534112]
[1735739660684,1.47179587,709.97,709.06,1.04534112]
[1735739661978,1.47179587,709.97,709.08,1.04534112]
[1735739663082,1.47179587,709.97,709.07,1.04534112]
[1735739664584,1.47179587,709.97,709.02,1.128]
[1735739664585,1.47179587,709.97,709.05,1.04534112]
[1735739665888,1.47179587,709.97,709.02,2.17334112]
[1735739666788,1.47179587,709.97,709.02,1.128]
[1735739668084,1.47179587,709.97,709.03,1.04534112]
[1735739671286,1.47179587,709.97,709.06,1.04534112]
[1735739672393,0.28170601,709.96,709.06,1.04534112]
[1735739672594,0.28170601,709.96,709.02,1.128]
[1735739674998,0.28170601,709.96,709.04,1.04534112]
[1735739675895,0.28170601,709.96,708.86,1.04534112]
[1735739675896,0.28170601,709.96,709.08,1.04534112]
[1735739676698,0.28170601,709.96,709.09,1.128]
[1735739681497,0.28170601,709.96,709.09,2.17334112]
[1735739683101,0.28170601,709.96,709.1,1.04534112]
[1735739684204,0.28170601,709.96,709.11,1.04534112]
[1735739685099,0.28170601,709.96,709.12,1.04534112]
[1735739686401,0.28170601,709.96,709.09,1.128]
[1735739689703,0.28170601,709.96,709.0,1.04534112]
[1735739690905,0.28170601,709.96,709.01,1.088]
[1735739692606,0.28170601,709.96,709.02,1.04534112]
[1735739693699,0.28170601,709.96,709.01,1.088]
[1735739698409,0.28170601,709.96,709.01,2.13334112]
[1735739699813,0.28170601,709.96,709.03,1.04534112]
[1735739703113,0.28170601,709.96,709.04,0.937]
[1735739703313,0.28170601,709.96,709.11,1.04534112]
[1735739703611,0.2594557,709.95,709.11,1.04534112]
[1735739703814,0.28171394,709.94,709.11,1.04534112]
[1735739704318,0.28171394,709.94,709.1,1.04534112]
[1735739705915,0.28171394,709.94,709.04,0.937]
[1735739705916,0.28171394,709.94,709.08,1.04534112]
[1735739706513,0.28171394,709.94,709.1,1.04534112]
[1735739707614,0.28171394,709.94,709.11,1.04534112]
[1735739710316,0.28171394,709.94,709.06,1.04534112]
[1735739711421,0.28171394,709.94,709.04,0.937]
[1735739711422,0.28171394,709.94,709.12,1.04534112]
[1735739712422,0.28171394,709.94,709.11,1.04534112]
[1735739713421,0.28171394,709.94,709.04,0.937]
[1735739713422,0.28171394,709.94,709.04,1.98234112]
[1735739714725,0.28171394,709.94,709.06,1.04534112]
[1735739715620,0.28171394,709.94,709.07,1.04534112]
[1735739716722,0.28171394,709.94,709.04,0.937]
[1735739716723,0.28171394,709.94,709.09,1.04534112]
[1735739718021,0.28171394,709.94,709.1,1.04534112]
[1735739719230,0.28171394,709.94,709.13,1.04534112]
[1735739720222,0.28171394,709.94,709.15,1.04534112]
[1735739721729,0.28171394,709.94,709.13,1.04534112]
[1735739722828,0.28171394,709.94,709.1,1.04534112]
[1735739723931,0.28171394,709.94,709.05,1.04534112]